Cogmind - Beta 13 @@@ ROGUE MODE // 2024.04.03 @ 16:58:05 Player: kikul Result: Destroyed by G-47 Trooper with Particle Gun Performance ------------- Evolutions (2) 1000 Regions Visited (3) 600 Robots Destroyed (44) 220 Value Destroyed (834) 834 Prototype IDs (0) 0 Alien Tech Used (0) 0 Bonus (0) 0 TOTAL SCORE: 2654 Bonus ------- None Cogmind --------- Core Integrity 0/550 Matter 140/300 Energy 69/100 System Corruption 3% Temperature Cool (9) Movement Core (350) Ox6 Location -8/Materials Parts ------- > --- POWER (2) -------- (None) > --- PROPULSION (2) --- (None) > --- UTILITY (5) ------ Heavy Armor Plating > --- WEAPON (2) ------- EMP Blaster > --- INVENTORY (5) ---- Structural Scanner Signal Interpreter Field Recycling Unit (0) Peak State ------------ > --- POWER ------------ Nuclear Core > --- PROPULSION ------- Advanced Treads Carbon-fiber Leg > --- UTILITY ---------- Improved Cooling System Disposable Heat Sink Medium Storage Unit Medium Reactive Plating Field Recycling Unit > --- WEAPON ----------- Gauss Cannon Gauss Cannon > --- INVENTORY -------- Medium Storage Unit Structural Scanner Signal Interpreter Seismic Detector Medium Reactive Plating [Rating: 30] Favorites ----------- Power Light Ion Engine Engine Light Ion Engine Power Core Nuclear Core Propulsion Aluminum Leg Treads Advanced Treads Leg Aluminum Leg Utility Heat Sink Device Heat Sink Storage Medium Matter Pod Processor Terrain Scan Processor Protection Light Armor Plating Weapon Small Laser Energy Gun Small Laser Ballistic Gun Assault Rifle Ballistic Cannon Gauss Cannon Launcher Grenade Launcher Special Weapon Welding Torch Impact Weapon Hammer Build | -11 -10 -9 -8 ------- Run | Yrd Mat Mat Mat Slots Evolved 4 | . . 2 2 Power 1 | . . . 1 Propulsion . | . . . . Utility 3 | . . 2 1 Weapon . | . . . . Parts Attached 67 | 12 6 24 25 Power 9 | 1 . 3 5 Engine 7 | 1 . 3 3 Core 2 | . . . 2 Reactor . | . . . . Propulsion 8 | 3 . 1 4 Treads 2 | . . . 2 Leg 6 | 3 . 1 2 Wheel . | . . . . Hover . | . . . . Flight . | . . . . Utility 29 | 4 4 10 11 Device 15 | 3 2 4 6 Storage 5 | 1 1 1 2 Processor 3 | . 1 2 . Hackware . | . . . . Protection 6 | . . 3 3 Artifact . | . . . . Weapon 21 | 4 2 10 5 Energy Gun 6 | 2 . 3 1 Energy Cannon . | . . . . Ballistic Gun 4 | 2 1 1 . Ballistic Cannon 2 | . . . 2 Launcher 6 | . 1 3 2 Special Weapon 1 | . . 1 . Impact Weapon 2 | . . 2 . Slashing Weapon . | . . . . Piercing Weapon . | . . . . Special Melee Weapon . | . . . . Unidentified Prototypes . | . . . . Parts Lost 15 | . . 4 11 Power 4 | . . 1 3 Propulsion 4 | . . 1 3 Utility 4 | . . 1 3 Weapon 3 | . . 1 2 Highest Loss Streak 3 | . . 2 3 To Critical Strikes . | . . . . Average Slot Usage (%) 87 | . 99 90 67 Engine 9 | . 14 9 4 Core 1 | . . . 7 Leg 21 | . 28 21 11 Device 19 | . 26 14 19 Storage 9 | . 1 16 6 Protection 2 | . . 4 2 Energy Gun 6 | . 4 6 7 Ballistic Gun 7 | . 12 7 2 Launcher 5 | . 10 5 . Naked Turns 23 | . . . 23 Heaviest Build 56 | 8 14 56 55 Greatest Support 25 | 20 20 20 25 Greatest Overweight (x) 12 | . . 2 12 Average Overweight (x) . | . . . 1 Largest Inventory Capacity 20 | 5 8 20 20 Average Capacity 8 | 5 5 14 9 Most Carried 11 | 5 5 11 10 Average Carried 5 | 3 4 7 6 Final Capacity 20 | 5 8 20 5 Final Carried 9 | 5 5 9 3 Class Distribution -------------------- 71% | Scavenger-Mutant 28% | Mutant Dominant Class ---------------- Mutant | -10/Materials Scavenger-Mutant | -9/Materials Mutant | -8/Materials Resources | -11 -10 -9 -8 ----------- Run | Yrd Mat Mat Mat Matter Collected 1225 | 403 106 446 270 Remotely . | . . . . Salvage Created 1175 | 94 166 511 404 Parts 82 | 12 7 41 22 Haulers Intercepted 2 | . 1 1 . Recyclers Shooed 5 | . . 2 3 Parts Field Recycled . | . . . . Retrieved Matter . | . . . . Parts Self-Destructed . | . . . . Prevented . | . . . . Kills | -11 -10 -9 -8 ------- Run | Yrd Mat Mat Mat Combat Hostiles Destroyed 23 | 1 . 10 12 Guns 6 | 1 . 4 1 Cannons 4 | . . . 4 AOE 13 | . . 6 7 Classes Destroyed 12 | 3 3 5 1 Worker 4 | 1 1 2 . Builder 6 | . 1 4 1 Tunneler 2 | 2 . . . Hauler 2 | . 1 1 . Recycler 4 | . 1 2 1 Mechanic 2 | . . 1 1 Watcher 1 | . . 1 . Swarmer 9 | . . 5 4 Grunt 8 | 1 . 3 4 Brawler 2 | . . 1 1 Sentry 3 | . . 1 2 Hunter 1 | . . . 1 Best Kill Streak 11 | 1 1 3 11 Combat Bots Only 10 | 1 . 2 10 Max Kills in Single Turn 3 | 1 1 3 3 Gunslinging . | . . . . Exploded 3 | . . 2 3 Melee . | . . . . Uniques/NPCs Destroyed . | . . . . Combat | -11 -10 -9 -8 -------- Run | Yrd Mat Mat Mat Hostile Shots Fired 325 | 7 . 89 229 Missed 98 | 3 . 27 68 Damage Taken 3188 | 44 45 719 2380 Core 728 | 12 . 158 558 Absorbed by Shields . | . . . . Ignored by Resistances 26 | . . . 26 Regen/Repaired (Parts) 11 | . . 11 . Core Remaining (%) 83 | 95 95 60 . Volleys Fired 126 | 19 13 59 35 Largest 2 | 2 2 2 2 Hottest 106 | 80 60 86 106 Shots Fired 192 | 35 14 84 59 Gun 137 | 35 13 67 22 Cannon 31 | . . . 31 Launcher 18 | . 1 11 6 Special 6 | . . 6 . Kinetic 114 | 21 12 49 32 Thermal 51 | 14 1 24 12 Explosive 16 | . 1 11 4 Electromagnetic 11 | . . . 11 Robot Hit Streak 9 | 3 4 6 9 Robot Miss Streak 5 | 2 3 5 4 Penetration Max 1 | . . . 1 Secondary Targets . | . . . . Shots Hit Robots 99 | 19 9 41 30 Core Hits 74 | 6 8 39 21 Critical Kills . | . . . . Critical Parts Destroyed . | . . . . Critical Strikes 3 | . . 1 2 Burn 1 | . . 1 . Blast 2 | . . . 2 Melee Attacks . | . . . . Impact . | . . . . Slashing . | . . . . Piercing . | . . . . Sneak Attacks . | . . . . Combat Hostiles . | . . . . Follow-up Attacks . | . . . . Damage Inflicted 2750 | 185 134 1186 1245 Guns 862 | 185 108 425 144 Cannons 642 | . . . 642 Explosions 1175 | . 26 752 397 Melee . | . . . . Ramming 62 | . . . 62 Kinetic 1212 | 119 108 336 649 Thermal 249 | 66 . 98 85 Explosive 1115 | . 26 752 337 Electromagnetic 112 | . . . 112 Impact . | . . . . Slashing . | . . . . Piercing . | . . . . Highest Corruption 3 | . . . 3 Average Corruption 2 | . . . 2 Corruption Purged . | . . . . Corruption Blocked . | . . . . Effects 2 | . . . 2 Energy Discharges 1 | . . . 1 Data Loss (minor) 1 | . . . 1 Overload Shots . | . . . . Overflow Damage 35 | . . 3 32 Projectiles . | . . . . Explosions 35 | . . 3 32 Melee . | . . . . Knockbacks 10 | . . . 10 Impact . | . . . . Kinetic 7 | . . . 7 Secondary 3 | . . . 3 Self-Inflicted Damage 150 | . . 75 75 Shots 3 | . . 2 1 Rammed . | . . . . Targets Rammed . | . . . . Kicked . | . . . . Crushed . | . . . . Highest Temperature 120 | 6 . 120 28 Average Temperature 31 | 6 . 41 5 Received Heat Transfer 1185 | 24 . 144 1017 Siege Activations . | . . . . Robots Corrupted . | . . . . Combat Hostiles . | . . . . Parts Fried . | . . . . Impact Corruptions . | . . . . Robots Melted . | . . . . Combat Hostiles . | . . . . Parts Melted 1 | . . 1 . Heat Transferred 768 | 150 . 396 222 Parts Sabotaged . | . . . . Parts Stolen . | . . . . Parts Stripped . | . . . . Power Chain Reactions . | . . . . Alert | -11 -10 -9 -8 ------- Run | Yrd Mat Mat Mat Peak Influence 217 | 25 44 217 184 Initial 44 | . 6 . 44 Average 52 | 3 15 128 89 Maximum Alert Level 1 | . . 1 . Low Security (%) 96 | 100 100 86 100 Level 1 3 | . . 13 . Level 2 . | . . . . Level 3 . | . . . . Level 4 . | . . . . Level 5 . | . . . . High Security . | . . . . Max Security . | . . . . Squads Dispatched 5 | . . 3 2 Investigation 2 | . . 1 1 Extermination . | . . . . Reinforcement 3 | . . 2 1 Assault . | . . . . Garrison . | . . . . Intercept . | . . . . Searches Triggered . | . . . . Construction Impeded 2 | . . 1 1 Haulers Reinforced . | . . . . Active Scanning Responses . | . . . . Cargo Convoy Interrupts . | . . . . Stealth | -11 -10 -9 -8 --------- Run | Yrd Mat Mat Mat Distress Signals . | . . . . Communications Jammed . | . . . . Distress Signals . | . . . . Times Spotted 51 | 1 1 25 24 Peak Tracking Total 8 | 1 . 4 8 Tactical Retreats 1 | . . 1 . Traps | -11 -10 -9 -8 ------- Run | Yrd Mat Mat Mat Traps Triggered 2 | . 1 . 1 Indirectly . | . . . . Trap Hack Attempts . | . . . . Triggered . | . . . . Disarmed . | . . . . Reprogrammed . | . . . . Reused . | . . . . Traps Extracted . | . . . . Installed . | . . . . Triggered . | . . . . Machines | -11 -10 -9 -8 ---------- Run | Yrd Mat Mat Mat Machines Disabled 4 | . . 3 1 Max in Single Turn 1 | . . 1 1 Machines Repaired . | . . . . Machines Dismantled . | . . . . Machines Sabotaged . | . . . . Overloaded Fab Kills . | . . . . Hacking | -11 -10 -9 -8 --------- Run | Yrd Mat Mat Mat Machines Accessed 4 | . 3 1 . Terminals 3 | . 3 . . Fabricators . | . . . . Repair Stations 1 | . . 1 . Recycling Units . | . . . . Scanalyzers . | . . . . Garrison Access . | . . . . Total Hacks 18 | . 12 6 . Successful 12 | . 7 5 . Failed 6 | . 5 1 . Catastrophic . | . . . . Database Lockouts . | . . . . Manual . | . . . . Terminals 12 | . 12 . . Fabricators . | . . . . Repair Stations 6 | . . 6 . Recycling Units . | . . . . Scanalyzers . | . . . . Garrison Access . | . . . . Terminal Hacks 7 | . 7 . . Record 5 | . 5 . . Locate Traps 2 | . 2 . . Fabricator Hacks . | . . . . Repair Station Hacks 5 | . . 5 . Scan Component 3 | . . 3 . Repair 2 | . . 2 . Recycling Unit Hacks . | . . . . Scanalyzer . | . . . . Garrison Access Hacks . | . . . . Unauthorized Hacks . | . . . . Terminals . | . . . . Fabricators . | . . . . Repair Stations . | . . . . Recycling Units . | . . . . Scanalyzers . | . . . . Garrison Access . | . . . . Data Cores Recovered . | . . . . Used . | . . . . Hacking Detections 4 | . 3 1 . Full Trace Events 3 | . 2 1 . Feedback Events . | . . . . Feedback Blocked . | . . . . Robot Schematics Acquired . | . . . . Robots Built . | . . . . Authchips . | . . . . Time . | . . . . Total Robot Build Rating . | . . . . Part Schematics Acquired . | . . . . Parts Built . | . . . . Authchips . | . . . . Time . | . . . . Total Part Build Rating . | . . . . Parts Repaired 2 | . . 2 . Time 64 | . . 64 . Parts Recycled . | . . . . Recycled Matter . | . . . . Retrieved Matter . | . . . . Retrieved Components . | . . . . Parts Scanalyzed . | . . . . Part Schematics Acquired . | . . . . Parts Damaged . | . . . . Bothacking | -11 -10 -9 -8 ------------ Run | Yrd Mat Mat Mat Used RIF Installer . | . . . . Robots Hacked . | . . . . Non-combat . | . . . . Combat . | . . . . Robot Hacks Applied . | . . . . Relay Couplers Released . | . . . . Fabnet Peak Effective % . | . . . . Robots Rewired . | . . . . Allies Hacked . | . . . . Hacks Repelled . | . . . . Allies | -11 -10 -9 -8 -------- Run | Yrd Mat Mat Mat Total Allies . | . . . . Largest Group . | . . . . Highest-Rated Group . | . . . . Highest-Rated Ally . | . . . . Total Orders . | . . . . Ally Attacks . | . . . . Total Damage . | . . . . Kills . | . . . . Allies Corrupted . | . . . . Allies Melted . | . . . . Intel | -11 -10 -9 -8 ------- Run | Yrd Mat Mat Mat Robot Analysis Total . | . . . . Derelict Logs Recovered . | . . . . Drone Launches . | . . . . Drone Recoveries . | . . . . Exploration | -11 -10 -9 -8 ------------- Run | Yrd Mat Mat Mat Turns Passed 4784 | 1948 812 1334 690 Spaces Moved 2147 | 657 572 622 296 Core 119 | 17 . . 102 Treads 24 | . . . 24 Legs 2004 | 640 572 622 170 Wheels . | . . . . Hover . | . . . . Flight . | . . . . Fastest Speed 50 | 50 120 120 50 Average Speed 142 | 118 120 174 172 Slowest Speed 650 | 120 120 260 650 Overloaded Moves . | . . . . Propulsion Burnouts . | . . . . Robots Hopped . | . . . . Cave-ins Triggered . | . . . . Exploration Rate (%) 38 | 41 63 28 21 Regions Visited 3 Branch Regions . Pre-discovered Areas . | . . . . Known Exits Taken . | . . . . Unknown Exits Taken 3 | 1 1 1 . Scrap Searched . | . . . . Spaces Dug . | . . . . Terrain Destroyed 106 | . 9 69 28 Melee . | . . . . Projectile 8 | . . . 8 AOE 98 | . 9 69 20 Terrain Rammed 7 | . . . 7 Walls Destroyed . | . . . . Machines Disabled . | . . . . Actions | -11 -10 -9 -8 --------- Run | Yrd Mat Mat Mat Total 3689 | 1795 685 791 418 Wait 1246 | 1090 79 55 22 Move 2144 | 656 571 621 296 Hop . | . . . . Pick Up 61 | 15 8 21 17 Fast Attach 3 | . . . 3 Attach 35 | 7 2 11 15 Detach 4 | . 1 1 2 Swap 29 | 5 4 13 7 Drop 34 | 3 7 10 14 Fire 126 | 19 13 59 35 Melee . | . . . . Ram 7 | . . . 7 Kick . | . . . . Crush . | . . . . Escape Stasis . | . . . . Rewire . | . . . . Trap . | . . . . Miscellaneous . | . . . . Route ------- -11/Scrapyard -10/Materials (discovered 3 exits: *Mat / [*Min] / [*Sub]) -9/Materials -8/Materials History --------- Turn | Location | Event 2 | -11/Scrapyard | Met Revision 17 79 | -11/Scrapyard | Discovered new exit (range 8) 1949 | -11/Scrapyard | Entered Materials 1950 | -10/Materials | Build established: Scavenger-Mutant 2355 | -10/Materials | Discovered new exit (range 13) 2450 | -10/Materials | Build established: Mutant 2503 | -10/Materials | Discovered new exit (range 5) 2743 | -10/Materials | Discovered new exit (range 16) 2761 | -10/Materials | Entered another Materials area 2761 | -9/Materials | Evolved 2 slots: Utility x2 2866 | -9/Materials | Repaired Imp. Terrain Scanner 2892 | -9/Materials | Repaired Heat Sink? 3310 | -9/Materials | Build established: Scavenger-Mutant 4064 | -9/Materials | Discovered new exit (range 12) 4095 | -9/Materials | Entered another Materials area 4095 | -8/Materials | Evolved 2 slots: Power x1, Utility x1 4521 | -8/Materials | Build established: Mutant 4546 | -8/Materials | Destroyed 10 combat bots 4565 | -8/Materials | Lost 3 parts (1n1u1w) 4626 | -8/Materials | Released all parts (6) 4633 | -8/Materials | Core integrity fell below 50% 4648 | -8/Materials | Lost 3 parts (1p2n) 4708 | -8/Materials | Core integrity fell below 20% 4747 | -8/Materials | Lost 3 parts (2p1u) 4785 | -8/Materials | Destroyed by G-47 Trooper with Particle Gun Last Messages --------------- R-06 Scavenger collects Flight Unit. U-05 Engineer destroyed. U-05 Engineer builds a Door. Critical hit (Burn: +37). S-10 Pest destroyed. K-01 Serf collects debris. R-06 Scavenger collects Lgt. Ion Engine. Dropped Seismic Detector. Acquired Hvy. Armor Plating. Critical hit (Burn: +37). Acquired EMP Blaster. G-47 Trooper destroyed. Door malfunctions. K-01 Serf destroyed. Destroyed Imp. Heat Sink. System corrupted: Energy discharge (-13). Critical hit (Burn: +37). Med. Reactive Plating destroyed. Critical hit (Burn: +37). [Achievement: First Step to Greatness] Map ----- +----------------------------------------------------+ | ?????????????????????????????????????????????????? | | ?????????????????????????????????????????????????? | | ?????????????????????????????????????????????????? | | ?????????????????????????????????????????????????? | | ?????????????????????????????????????????????????? | | ?????????????????????????????????????????????????? | | ?????????????????????????????????????????????????? | | ?????????????????????????????????????????????????? | | ?????????????????????????????????????????????????? | | ?????????????????????????????????????????????????? | | ????????????????????????????? ???????????????? | | ????????????????????????????? ???????????????? | | ????????????????????????????? ???????????????? | | ????????????????????????????? ???????????????? | | ????????????????????????????? ???????????????? | | ?????????????????????????????# #???????????????? | | ?????????????????????????????# #???????????????? | | ?????????????????????????????# #???????????????? | | ?????????????????????????????# #???????????????? | | ?????????????????????????????# #???????????????? | | ??????????????????############ #???????????????? | | ??????????????????? /r # #???????????????? | | ????????????????????# # #???????????????? | | ????????????????????# # % ############## | | ????????????????????u ! [#u | | ????????????????????# %@ =%g% | | ????????????????????# ! #% =% | | ????????????????????# #! ############## | | ????????????????????# # #???????????????? | | ????????????????????# # #######?????????? | | ????????????????????########## *=%[ +???? | | ?????????????????????????????# #######?????????? | | ???????????????????????????### ### ##??????????? | | ????????????????????######## # # ??????????? | | ????????????????????# # # "??????????? | | ????????????????????# """ # # ???????????? | | ????????????????????# "T" # # ???????????? | | ????????????????????# #% # ???????????? | | ????????????????????# # #%""????????????? | | ????????????????????# """ + +="??????????#### | | ????????????????????# """ # %# ???????????#### | | ????????????????????# """ # # ?###### | | ????????????????????# # ########?###### | | ????????????????????########## #### # | | ?????????????????????## # #### # | | ?????????????????????## # # | | ?????????????????????## " " / ! # | | ?????????????????????## "Y" # # | | ?????????????????????## """ # # | | ?????????????????????## # ### | +----------------------------------------------------+ Best States ------------- Heat Dissipation 68 Coolant Potential 50 Energy Generation 23 Energy Capacity 315 Matter Stores 400 Matter Capacity 400 Sight Range 16 Terrain Scan Range 16 Terrain Scan Density 85 Additional Mass Support 9 Armor Coverage 825 Resistance: KI 30 Evasion (%) 55 Recoil Reduction 1 Item Schematics ----------------- None Robot Schematics ------------------ None Fabricated ------------ Nothing Alien Tech Used ----------------- None Achievements -------------- First Step to Greatness Hey, That's Mine! Loot Pinata One Hack Too Far Part-time Mechanic Please Form A Line Storm Trooper Uninvited Guest Challenges ------------ None Game ------ Seed BarrageAuthchipDeconstructor Manual? 0 Play Time 01:50:57 Cumulative 1.8 hours Start 2024.04.03 @ 14:38:07 End 2024.04.03 @ 16:58:05 Sessions 1 Manual Loads 0 Difficulty Rogue Special Mode None Game No. 1 Rogue 1 Adventurer 0 Explorer 0 Win Type - Total 0 Types 0/0/0/0/0/0/0/0/0 Lore% 0 Gallery% 3 Achievement% 3 Wizard Run 0 Options --------- Layout 1 ASCII 0 Keyboard 0 Movement Mouse Keybinds 0 Fullscreen 2 Font 32/SmallcapsGlow Map View 50x35 Zoom Use 0% Tactical HUD 0 Map Filters NONE Filters NONE Steam 1 RUN: f0399e4c-2d04-4252-932c-e6013ed2047f